[Event "Early-Titled-Tuesday-Blitz-October-17-2023"]
[Site "Chess.com"]
[Date "2023.10.17"]
[Round "10"]
[White "Mykola-Bortnyk"]
[Black "I_am_Javi"]
[Result "1/2-1/2"]
[WhiteElo "2987"]
[BlackElo "2782"]
[TimeControl "180+1"]
[EndTime "10:01:45 PDT"]
[Termination "Game drawn by stalemate"]

1. e4 {[%clk 0:03:00.9]} 1... e5 {[%clk 0:03:00]} 2. Nf3 {[%clk 0:03:00.7]} 2...
Nc6 {[%clk 0:02:59.6]} 3. Bb5 {[%clk 0:03:01.5]} 3... f5 {[%clk 0:02:58.5]} 4.
Nc3 {[%clk 0:02:54.8]} 4... Nf6 {[%clk 0:02:55.8]} 5. d4 {[%clk 0:02:46.1]} 5...
exd4 {[%clk 0:02:52.5]} 6. Nxd4 {[%clk 0:02:45.1]} 6... fxe4 {[%clk 0:02:47.6]}
7. Bg5 {[%clk 0:02:38.5]} 7... Bb4 {[%clk 0:02:42.5]} 8. O-O {[%clk 0:02:34.3]}
8... Bxc3 {[%clk 0:02:23.6]} 9. bxc3 {[%clk 0:02:35.2]} 9... O-O {[%clk
0:02:20.7]} 10. f3 {[%clk 0:02:33.7]} 10... Ne5 {[%clk 0:01:54.9]} 11. fxe4
{[%clk 0:02:22.9]} 11... d6 {[%clk 0:01:51.8]} 12. Qe2 {[%clk 0:02:08.1]} 12...
h6 {[%clk 0:01:45.2]} 13. Bh4 {[%clk 0:02:05.6]} 13... Qe7 {[%clk 0:01:39.5]}
14. h3 {[%clk 0:02:01.8]} 14... Kh8 {[%clk 0:01:36]} 15. Rf2 {[%clk 0:01:59.4]}
15... Ng6 {[%clk 0:01:31.7]} 16. Bg3 {[%clk 0:01:51.2]} 16... Bd7 {[%clk
0:01:28.7]} 17. Bd3 {[%clk 0:01:45.4]} 17... Rae8 {[%clk 0:01:23.7]} 18. Raf1
{[%clk 0:01:42.4]} 18... Ne5 {[%clk 0:01:11.6]} 19. Bh4 {[%clk 0:01:36.4]} 19...
Rf7 {[%clk 0:01:03.8]} 20. Bxf6 {[%clk 0:01:28.3]} 20... Rxf6 {[%clk 0:01:01.2]}
21. Rxf6 {[%clk 0:01:29]} 21... gxf6 {[%clk 0:01:02.1]} 22. Qe3 {[%clk
0:01:27.1]} 22... Qg7 {[%clk 0:00:57.5]} 23. Rf4 {[%clk 0:01:26.5]} 23... Rg8
{[%clk 0:00:53.1]} 24. Bf1 {[%clk 0:01:26.6]} 24... Qg5 {[%clk 0:00:47.2]} 25.
Nf3 {[%clk 0:01:04.9]} 25... Nxf3+ {[%clk 0:00:38.6]} 26. Qxf3 {[%clk
0:01:05.8]} 26... Rg6 {[%clk 0:00:39]} 27. Kh2 {[%clk 0:01:01.8]} 27... Kg7
{[%clk 0:00:34.3]} 28. g3 {[%clk 0:00:59.4]} 28... Be6 {[%clk 0:00:30.8]} 29. a4
{[%clk 0:00:51]} 29... Qa5 {[%clk 0:00:28.9]} 30. Bd3 {[%clk 0:00:47.2]} 30...
Qe5 {[%clk 0:00:27.7]} 31. Qf2 {[%clk 0:00:44.9]} 31... c5 {[%clk 0:00:25.8]}
32. Rf3 {[%clk 0:00:35.3]} 32... h5 {[%clk 0:00:22.8]} 33. Rf4 {[%clk
0:00:33.1]} 33... b6 {[%clk 0:00:19.5]} 34. Be2 {[%clk 0:00:32.5]} 34... Kh6
{[%clk 0:00:14.9]} 35. Rh4 {[%clk 0:00:30.6]} 35... Rg5 {[%clk 0:00:14.7]} 36.
Rf4 {[%clk 0:00:28.4]} 36... Rg6 {[%clk 0:00:12.7]} 37. c4 {[%clk 0:00:28.6]}
37... Kg7 {[%clk 0:00:06.3]} 38. Qf3 {[%clk 0:00:27.5]} 38... Kh6 {[%clk
0:00:04.7]} 39. Rh4 {[%clk 0:00:27.7]} 39... Rg5 {[%clk 0:00:04.8]} 40. Rf4
{[%clk 0:00:28.1]} 40... Kg7 {[%clk 0:00:04.8]} 41. c3 {[%clk 0:00:28.8]} 41...
Bf7 {[%clk 0:00:04]} 42. h4 {[%clk 0:00:26.5]} 42... Rg4 {[%clk 0:00:04.2]} 43.
Rxg4+ {[%clk 0:00:26.6]} 43... hxg4 {[%clk 0:00:05.1]} 44. Qxg4+ {[%clk
0:00:27.5]} 44... Kf8 {[%clk 0:00:04.7]} 45. Qf4 {[%clk 0:00:24.7]} 45... Qxc3
{[%clk 0:00:04.3]} 46. Qxd6+ {[%clk 0:00:24.7]} 46... Kg7 {[%clk 0:00:05.1]} 47.
Qd7 {[%clk 0:00:16.4]} 47... Qc2 {[%clk 0:00:05]} 48. Qg4+ {[%clk 0:00:15.8]}
48... Kf8 {[%clk 0:00:04.9]} 49. Kh3 {[%clk 0:00:16.2]} 49... Bxc4 {[%clk
0:00:01.6]} 50. Qc8+ {[%clk 0:00:16.5]} 50... Kg7 {[%clk 0:00:02]} 51. Qd7+
{[%clk 0:00:16.2]} 51... Kf8 {[%clk 0:00:02.7]} 52. Bf3 {[%clk 0:00:12.8]} 52...
Bf7 {[%clk 0:00:02.3]} 53. Qxa7 {[%clk 0:00:11]} 53... Qb3 {[%clk 0:00:02.3]}
54. a5 {[%clk 0:00:10.5]} 54... Qxf3 {[%clk 0:00:02.1]} 55. Qxb6 {[%clk
0:00:06.8]} 55... Qh1+ {[%clk 0:00:02.4]} 56. Kg4 {[%clk 0:00:07.3]} 56... Qd1+
{[%clk 0:00:03.2]} 57. Kf4 {[%clk 0:00:06.8]} 57... Qf1+ {[%clk 0:00:03.1]} 58.
Kg4 {[%clk 0:00:06.3]} 58... Qd1+ {[%clk 0:00:03.3]} 59. Kf4 {[%clk 0:00:06.2]}
59... Qd4 {[%clk 0:00:03.3]} 60. a6 {[%clk 0:00:05.4]} 60... Kg7 {[%clk
0:00:03.6]} 61. a7 {[%clk 0:00:04.8]} 61... Qf2+ {[%clk 0:00:04.1]} 62. Kg4
{[%clk 0:00:04.7]} 62... Qe2+ {[%clk 0:00:03.4]} 63. Kf4 {[%clk 0:00:04.9]}
63... Qf1+ {[%clk 0:00:04.2]} 64. Kg4 {[%clk 0:00:05.5]} 64... Qd1+ {[%clk
0:00:03.6]} 65. Kf4 {[%clk 0:00:05.9]} 65... Qc1+ {[%clk 0:00:03.6]} 66. Kf3
{[%clk 0:00:05.9]} 66... Qd1+ {[%clk 0:00:03.8]} 67. Ke3 {[%clk 0:00:05]} 67...
Qe1+ {[%clk 0:00:04]} 68. Kf3 {[%clk 0:00:03.4]} 68... Qf1+ {[%clk 0:00:04.2]}
69. Ke3 {[%clk 0:00:03.9]} 69... Qe1+ {[%clk 0:00:04.5]} 70. Kf3 {[%clk
0:00:04.6]} 70... Bh5+ {[%clk 0:00:04.8]} 71. g4 {[%clk 0:00:05]} 71... Qf1+
{[%clk 0:00:04.9]} 72. Ke3 {[%clk 0:00:05.6]} 72... Qc1+ {[%clk 0:00:04.8]} 73.
Kd3 {[%clk 0:00:04.6]} 73... c4+ {[%clk 0:00:05.1]} 74. Kd4 {[%clk 0:00:02.9]}
74... Qg1+ {[%clk 0:00:05.7]} 75. Kxc4 {[%clk 0:00:03.6]} 75... Qxb6 {[%clk
0:00:06.3]} 76. a8=Q {[%clk 0:00:04.5]} 76... Bf7+ {[%clk 0:00:06.4]} 77. Kd3
{[%clk 0:00:04.7]} 77... Qb3+ {[%clk 0:00:06.5]} 78. Kd4 {[%clk 0:00:04.9]}
78... Qb2+ {[%clk 0:00:06.2]} 79. Ke3 {[%clk 0:00:05.5]} 79... Qc1+ {[%clk
0:00:06.8]} 80. Kf2 {[%clk 0:00:05.8]} 80... Qd2+ {[%clk 0:00:06.9]} 81. Kf3
{[%clk 0:00:06.2]} 81... Qd3+ {[%clk 0:00:07.2]} 82. Kf2 {[%clk 0:00:06.6]}
82... Qd2+ {[%clk 0:00:07.4]} 83. Kf3 {[%clk 0:00:07.3]} 83... Qd1+ {[%clk
0:00:08.1]} 84. Kg3 {[%clk 0:00:07.3]} 84... Qg1+ {[%clk 0:00:08.2]} 85. Kh3
{[%clk 0:00:08]} 85... Qe3+ {[%clk 0:00:07.4]} 86. Kg2 {[%clk 0:00:07.7]} 86...
Qf4 {[%clk 0:00:07.2]} 87. g5 {[%clk 0:00:05.5]} 87... fxg5 {[%clk 0:00:07.6]}
88. hxg5 {[%clk 0:00:05.9]} 88... Qxg5+ {[%clk 0:00:08.5]} 89. Kf3 {[%clk
0:00:06.6]} 89... Bh5+ {[%clk 0:00:08.9]} 90. Kf2 {[%clk 0:00:06.1]} 90... Qf4+
{[%clk 0:00:09.5]} 91. Kg1 {[%clk 0:00:05.2]} 91... Qg3+ {[%clk 0:00:09.7]} 92.
Kf1 {[%clk 0:00:05.9]} 92... Qd3+ {[%clk 0:00:09.7]} 93. Kf2 {[%clk 0:00:05.6]}
93... Qe2+ {[%clk 0:00:09.9]} 94. Kg1 {[%clk 0:00:04.6]} 94... Qe3+ {[%clk
0:00:09.3]} 95. Kh2 {[%clk 0:00:03.1]} 95... Qf2+ {[%clk 0:00:09.5]} 96. Kh3
{[%clk 0:00:03.9]} 96... Qf3+ {[%clk 0:00:09.8]} 97. Kh2 {[%clk 0:00:04.7]}
97... Qf4+ {[%clk 0:00:09.6]} 98. Kg1 {[%clk 0:00:04.7]} 98... Qg3+ {[%clk
0:00:09.6]} 99. Kf1 {[%clk 0:00:05]} 99... Qd3+ {[%clk 0:00:10.2]} 100. Kg1
{[%clk 0:00:04.8]} 100... Qe3+ {[%clk 0:00:10.2]} 101. Kg2 {[%clk 0:00:05.4]}
101... Bf3+ {[%clk 0:00:10.3]} 102. Kg3 {[%clk 0:00:06.1]} 102... Bxe4+ {[%clk
0:00:10.6]} 103. Kh2 {[%clk 0:00:05.3]} 103... Bxa8 {[%clk 0:00:11.3]} 1/2-1/2

[Event "Early-Titled-Tuesday-Blitz-October-17-2023"]
[Site "Chess.com"]
[Date "2023.10.17"]
[Round "10"]
[White "karinachess1"]
[Black "ckgchess"]
[Result "0-1"]
[WhiteElo "2614"]
[BlackElo "2878"]
[TimeControl "180+1"]
[EndTime "10:02:09 PDT"]
[Termination "ckgchess won by resignation"]

1. d4 {[%clk 0:03:00.9]} 1... Nf6 {[%clk 0:02:59.8]} 2. c4 {[%clk 0:03:00.8]}
2... e6 {[%clk 0:03:00]} 3. Nc3 {[%clk 0:03:00.3]} 3... Bb4 {[%clk 0:02:59.7]}
4. Qc2 {[%clk 0:02:59.3]} 4... d5 {[%clk 0:02:59]} 5. a3 {[%clk 0:02:56.5]} 5...
Bxc3+ {[%clk 0:02:55.9]} 6. Qxc3 {[%clk 0:02:57.4]} 6... O-O {[%clk 0:02:56.1]}
7. Nf3 {[%clk 0:02:52.6]} 7... dxc4 {[%clk 0:02:54.3]} 8. Qxc4 {[%clk
0:02:48.6]} 8... b6 {[%clk 0:02:54.3]} 9. g3 {[%clk 0:02:48.7]} 9... Ba6 {[%clk
0:02:53]} 10. Qc2 {[%clk 0:02:48]} 10... c5 {[%clk 0:02:52.8]} 11. dxc5 {[%clk
0:02:38.6]} 11... Nbd7 {[%clk 0:02:52.6]} 12. c6 {[%clk 0:02:25.4]} 12... Rc8
{[%clk 0:02:52.4]} 13. Bg2 {[%clk 0:02:25.4]} 13... Nb8 {[%clk 0:02:05.2]} 14.
Bf4 {[%clk 0:02:21.6]} 14... Nxc6 {[%clk 0:02:04.5]} 15. Qa4 {[%clk 0:01:35.1]}
15... Bb7 {[%clk 0:01:51.1]} 16. Rd1 {[%clk 0:01:32.9]} 16... Nd5 {[%clk
0:01:42.4]} 17. e4 {[%clk 0:00:57.6]} 17... Nxf4 {[%clk 0:01:35.1]} 18. Rxd8
{[%clk 0:00:57.5]} 18... Nxg2+ {[%clk 0:01:35.8]} 19. Kf1 {[%clk 0:00:57.9]}
19... Ne3+ {[%clk 0:01:32.5]} 20. fxe3 {[%clk 0:00:56.3]} 20... Rfxd8 {[%clk
0:01:33.1]} 21. Kf2 {[%clk 0:00:53]} 21... Na5 {[%clk 0:01:10.3]} 22. Rd1 {[%clk
0:00:51]} 22... Rf8 {[%clk 0:01:06.5]} 23. Ne5 {[%clk 0:00:35.4]} 23... f6
{[%clk 0:01:06.7]} 24. Nf3 {[%clk 0:00:29.8]} 24... Bc6 {[%clk 0:00:51.7]} 25.
Qb4 {[%clk 0:00:28.6]} 25... Rfe8 {[%clk 0:00:50]} 26. Rd6 {[%clk 0:00:26.7]}
26... Nb7 {[%clk 0:00:47]} 27. Rd1 {[%clk 0:00:20.6]} 27... Nc5 {[%clk
0:00:47.6]} 28. Qd4 {[%clk 0:00:07.3]} 28... Nxe4+ {[%clk 0:00:40.4]} 29. Kg1
{[%clk 0:00:07.5]} 29... Nc5 {[%clk 0:00:37.9]} 30. Rf1 {[%clk 0:00:05.4]} 30...
Rcd8 {[%clk 0:00:34.2]} 31. Qg4 {[%clk 0:00:05.7]} 31... Rd3 {[%clk 0:00:30.9]}
32. Nd4 {[%clk 0:00:05.3]} 32... Bd7 {[%clk 0:00:27.8]} 33. b4 {[%clk
0:00:05.5]} 33... e5 {[%clk 0:00:27.8]} 34. Qe2 {[%clk 0:00:05.5]} 34... exd4
{[%clk 0:00:26.4]} 35. bxc5 {[%clk 0:00:06]} 35... Rdxe3 {[%clk 0:00:25.1]} 36.
Qc4+ {[%clk 0:00:06.1]} 36... Be6 {[%clk 0:00:21.5]} 37. Qxd4 {[%clk 0:00:05.7]}
37... Bh3 {[%clk 0:00:22.3]} 38. c6 {[%clk 0:00:04.2]} 38... Bxf1 {[%clk
0:00:19.4]} 39. Kxf1 {[%clk 0:00:05.1]} 39... R3e7 {[%clk 0:00:18]} 40. Qd5+
{[%clk 0:00:04.6]} 40... Kh8 {[%clk 0:00:16.9]} 41. Qd6 {[%clk 0:00:05.2]} 41...
Rf7 {[%clk 0:00:15.4]} 42. Kf2 {[%clk 0:00:04.6]} 42... Rc8 {[%clk 0:00:15.1]}
43. a4 {[%clk 0:00:03.6]} 43... Rfc7 {[%clk 0:00:15.4]} 44. h4 {[%clk
0:00:03.3]} 44... Rxc6 {[%clk 0:00:15.5]} 45. Qd7 {[%clk 0:00:03.9]} 45... R6c7
{[%clk 0:00:16.3]} 46. Qd6 {[%clk 0:00:04.4]} 46... h6 {[%clk 0:00:16.7]} 47.
Kg2 {[%clk 0:00:04.6]} 47... Rc2+ {[%clk 0:00:17.3]} 48. Kh3 {[%clk 0:00:04.9]}
48... R2c6 {[%clk 0:00:18.2]} 49. Qd7 {[%clk 0:00:05.2]} 49... R6c7 {[%clk
0:00:19]} 50. Qd6 {[%clk 0:00:05.5]} 50... f5 {[%clk 0:00:16.4]} 51. Qe6 {[%clk
0:00:05.5]} 51... Rf8 {[%clk 0:00:16.1]} 52. Qe5 {[%clk 0:00:05.8]} 52... Rcf7
{[%clk 0:00:16.1]} 53. Qf4 {[%clk 0:00:06.3]} 53... Re7 {[%clk 0:00:16.1]} 54.
Qd6 {[%clk 0:00:06.3]} 54... Rff7 {[%clk 0:00:14.3]} 55. Qb8+ {[%clk 0:00:06.5]}
55... Kh7 {[%clk 0:00:14.7]} 56. Qf4 {[%clk 0:00:06.8]} 56... Re4 {[%clk
0:00:14.4]} 57. Qf3 {[%clk 0:00:07.2]} 57... Rxa4 {[%clk 0:00:13.4]} 58. h5
{[%clk 0:00:07.8]} 58... Rg4 {[%clk 0:00:12.5]} 59. Qc6 {[%clk 0:00:07.6]} 59...
Rf6 {[%clk 0:00:12.1]} 60. Qe8 {[%clk 0:00:07.4]} 60... a5 {[%clk 0:00:11.7]}
61. Qb8 {[%clk 0:00:06.8]} 61... a4 {[%clk 0:00:12.2]} 62. Qa8 {[%clk 0:00:07]}
62... b5 {[%clk 0:00:12.4]} 63. Qa5 {[%clk 0:00:07.3]} 63... Rg5 {[%clk
0:00:11]} 64. Qxb5 {[%clk 0:00:07.8]} 64... Rxh5+ {[%clk 0:00:11.2]} 65. Kg2
{[%clk 0:00:08.4]} 65... Rg5 {[%clk 0:00:11.2]} 66. Qxa4 {[%clk 0:00:08.3]}
66... f4 {[%clk 0:00:11.9]} 67. Qc2+ {[%clk 0:00:08.4]} 67... Rff5 {[%clk
0:00:09.8]} 68. g4 {[%clk 0:00:06.5]} 68... Rxg4+ {[%clk 0:00:10.4]} 69. Kf2
{[%clk 0:00:07]} 69... Rg5 {[%clk 0:00:11.3]} 70. Kf3 {[%clk 0:00:07.3]} 70...
Kg6 {[%clk 0:00:11.1]} 71. Qc6+ {[%clk 0:00:07.1]} 71... Kh5 {[%clk 0:00:10]}
72. Qe4 {[%clk 0:00:07.1]} 72... Rg3+ {[%clk 0:00:08.2]} 73. Kf2 {[%clk
0:00:07.6]} 73... g6 {[%clk 0:00:06.9]} 74. Qh1+ {[%clk 0:00:07.4]} 74... Kg5
{[%clk 0:00:07.4]} 75. Qe4 {[%clk 0:00:07]} 75... h5 {[%clk 0:00:07.5]} 76. Qe7+
{[%clk 0:00:06.7]} 76... Kg4 {[%clk 0:00:04.9]} 77. Qe2+ {[%clk 0:00:06.9]}
77... Kh4 {[%clk 0:00:05.1]} 78. Qe4 {[%clk 0:00:07]} 78... Rg4 {[%clk
0:00:02.8]} 79. Qh1+ {[%clk 0:00:07.1]} 79... Kg5 {[%clk 0:00:03.2]} 80. Qb7
{[%clk 0:00:07]} 80... Rf6 {[%clk 0:00:02.9]} 81. Qe7 {[%clk 0:00:07.1]} 81...
f3 {[%clk 0:00:02.5]} 82. Qe3+ {[%clk 0:00:06.4]} 82... Rgf4 {[%clk 0:00:02.6]}
83. Qe5+ {[%clk 0:00:06.5]} 83... Kg4 {[%clk 0:00:02.6]} 84. Qe1 {[%clk
0:00:05.5]} 84... Kf5 {[%clk 0:00:03.5]} 85. Qb1+ {[%clk 0:00:05.5]} 85... Kg5
{[%clk 0:00:04.2]} 86. Qg1+ {[%clk 0:00:05.4]} 86... Rg4 {[%clk 0:00:04.8]} 87.
Qc1+ {[%clk 0:00:05.3]} 87... Rff4 {[%clk 0:00:05.7]} 88. Qc5+ {[%clk
0:00:05.4]} 88... Rf5 {[%clk 0:00:06.6]} 89. Qe7+ {[%clk 0:00:05.3]} 89... Kh6
{[%clk 0:00:05.4]} 90. Qe3+ {[%clk 0:00:05.5]} 90... Rgg5 {[%clk 0:00:04.5]} 91.
Qe8 {[%clk 0:00:04.8]} 91... Rg2+ {[%clk 0:00:05.4]} 92. Kf1 {[%clk 0:00:04.7]}
92... f2 {[%clk 0:00:04.2]} 93. Qe3+ {[%clk 0:00:04.3]} 93... Kg7 {[%clk
0:00:04]} 94. Qe7+ {[%clk 0:00:04.2]} 94... Kg8 {[%clk 0:00:04.6]} 95. Qe8+
{[%clk 0:00:04.4]} 95... Kh7 {[%clk 0:00:04.9]} 96. Qe7+ {[%clk 0:00:04.8]}
96... Kh6 {[%clk 0:00:05.5]} 97. Qe3+ {[%clk 0:00:04.9]} 97... Rgg5 {[%clk
0:00:06.3]} 98. Qe8 {[%clk 0:00:04.1]} 98... Rg1+ {[%clk 0:00:06.7]} 99. Ke2
{[%clk 0:00:04.7]} 99... f1=Q+ {[%clk 0:00:07.6]} 100. Kd2 {[%clk 0:00:04.2]}
100... Qd1+ {[%clk 0:00:07.8]} 101. Kc3 {[%clk 0:00:04.6]} 101... Qe1+ {[%clk
0:00:08.5]} 102. Kc4 {[%clk 0:00:04.7]} 102... Qxe8 {[%clk 0:00:08.6]} 103. Kb3
{[%clk 0:00:05.3]} 103... Qc6 {[%clk 0:00:08.3]} 0-1

[Event "Early-Titled-Tuesday-Blitz-October-17-2023"]
[Site "Chess.com"]
[Date "2023.10.17"]
[Round "11"]
[White "ivana_999"]
[Black "sofaceindisguise"]
[Result "0-1"]
[WhiteElo "2078"]
[BlackElo "2733"]
[TimeControl "180+1"]
[EndTime "10:06:19 PDT"]
[Termination "sofaceindisguise won by resignation"]

1. d4 {[%clk 0:03:00.9]} 1... Nf6 {[%clk 0:03:00.1]} 2. c4 {[%clk 0:03:00.9]}
2... e6 {[%clk 0:03:01]} 3. Nc3 {[%clk 0:03:01.2]} 3... d5 {[%clk 0:03:01.4]} 4.
Bg5 {[%clk 0:02:58.8]} 4... Bb4 {[%clk 0:03:01.4]} 5. cxd5 {[%clk 0:02:55.8]}
5... exd5 {[%clk 0:03:01.1]} 6. e3 {[%clk 0:02:55.8]} 6... Nbd7 {[%clk
0:03:00.4]} 7. Bd3 {[%clk 0:02:53.5]} 7... h6 {[%clk 0:03:00.4]} 8. Bh4 {[%clk
0:02:53.3]} 8... c6 {[%clk 0:02:56.6]} 9. Ne2 {[%clk 0:02:52.2]} 9... O-O {[%clk
0:02:56.6]} 10. O-O {[%clk 0:02:52.3]} 10... Re8 {[%clk 0:02:56.8]} 11. a3
{[%clk 0:02:51.3]} 11... Be7 {[%clk 0:02:57]} 12. Qc2 {[%clk 0:02:45.7]} 12...
b6 {[%clk 0:02:49.7]} 13. b4 {[%clk 0:02:42.2]} 13... Bb7 {[%clk 0:02:49]} 14.
Rac1 {[%clk 0:02:41.5]} 14... Nf8 {[%clk 0:02:47.5]} 15. Nf4 {[%clk 0:02:37.5]}
15... g5 {[%clk 0:02:46.1]} 16. Bg3 {[%clk 0:02:22]} 16... gxf4 {[%clk 0:02:46]}
17. Bxf4 {[%clk 0:02:22.9]} 17... Kg7 {[%clk 0:02:46]} 18. g4 {[%clk 0:02:17.4]}
18... Ne6 {[%clk 0:02:45.2]} 19. g5 {[%clk 0:02:15.8]} 19... hxg5 {[%clk
0:02:44.4]} 20. Bxg5 {[%clk 0:02:13.6]} 20... Nxg5 {[%clk 0:02:44.3]} 21. Kh1
{[%clk 0:02:13.3]} 21... Kf8 {[%clk 0:02:39.7]} 22. Rg1 {[%clk 0:02:13.6]} 22...
Nge4 {[%clk 0:02:39.8]} 23. Bxe4 {[%clk 0:02:11.3]} 23... dxe4 {[%clk
0:02:39.4]} 24. Nxe4 {[%clk 0:02:01.7]} 24... c5 {[%clk 0:02:38.5]} 25. f3
{[%clk 0:01:56.8]} 25... Nxe4 {[%clk 0:02:38.3]} 26. fxe4 {[%clk 0:01:57.7]}
26... cxd4 {[%clk 0:02:36.2]} 27. Qg2 {[%clk 0:01:56.6]} 27... Bf6 {[%clk
0:02:35.7]} 28. Qg8+ {[%clk 0:01:39.8]} 28... Ke7 {[%clk 0:02:34.6]} 29. Qg4
{[%clk 0:01:34.1]} 29... Qd7 {[%clk 0:02:31.6]} 30. Qf4 {[%clk 0:01:29.4]} 30...
Rac8 {[%clk 0:02:27.7]} 31. exd4 {[%clk 0:01:27.2]} 31... Qxd4 {[%clk
0:02:21.2]} 32. Rcd1 {[%clk 0:01:14.7]} 32... Qxe4+ {[%clk 0:02:19.8]} 0-1

[Event "Early-Titled-Tuesday-Blitz-October-17-2023"]
[Site "Chess.com"]
[Date "2023.10.17"]
[Round "11"]
[White "Casper"]
[Black "dosto07"]
[Result "1-0"]
[WhiteElo "2423"]
[BlackElo "2535"]
[TimeControl "180+1"]
[EndTime "10:06:42 PDT"]
[Termination "Casper won by resignation"]

1. e4 {[%clk 0:03:00.9]} 1... e5 {[%clk 0:02:59.4]} 2. d4 {[%clk 0:03:01.2]}
2... exd4 {[%clk 0:02:59]} 3. Qxd4 {[%clk 0:03:02.1]} 3... Nc6 {[%clk
0:02:59.4]} 4. Qe3 {[%clk 0:03:02.8]} 4... Nf6 {[%clk 0:02:59.4]} 5. Nc3 {[%clk
0:03:03.6]} 5... Bb4 {[%clk 0:02:59.3]} 6. Bd2 {[%clk 0:03:04.4]} 6... O-O
{[%clk 0:02:56.2]} 7. O-O-O {[%clk 0:03:05]} 7... d5 {[%clk 0:02:54.8]} 8. exd5
{[%clk 0:03:04.8]} 8... Nxd5 {[%clk 0:02:54.3]} 9. Nxd5 {[%clk 0:03:05.1]} 9...
Qxd5 {[%clk 0:02:51.6]} 10. Bxb4 {[%clk 0:03:05.4]} 10... Qxa2 {[%clk
0:02:49.7]} 11. Bxf8 {[%clk 0:03:04.7]} 11... Bf5 {[%clk 0:02:47.8]} 12. Qa3
{[%clk 0:02:56]} 12... Qe6 {[%clk 0:02:38]} 13. Bc5 {[%clk 0:02:55.4]} 13... b6
{[%clk 0:02:35.4]} 14. Be3 {[%clk 0:02:55.3]} 14... a5 {[%clk 0:02:29.2]} 15.
Qb3 {[%clk 0:02:51.1]} 15... Qf6 {[%clk 0:02:25.5]} 16. Nf3 {[%clk 0:02:42.2]}
16... Nb4 {[%clk 0:02:25.2]} 17. Bd3 {[%clk 0:02:38.2]} 17... Be6 {[%clk
0:02:21.4]} 18. Bc4 {[%clk 0:02:37.5]} 18... Bf5 {[%clk 0:02:20.5]} 19. Bd4
{[%clk 0:02:23.2]} 19... Qg6 {[%clk 0:02:14.4]} 20. Ne5 {[%clk 0:02:21.7]} 20...
Qg5+ {[%clk 0:02:04.2]} 21. Be3 {[%clk 0:02:21.9]} 21... Qf6 {[%clk 0:02:02.6]}
22. Bxf7+ {[%clk 0:02:17.8]} 22... Kh8 {[%clk 0:02:02.3]} 23. Bd5 {[%clk
0:02:16.2]} 23... Bxc2 {[%clk 0:01:57.4]} 24. Qxc2 {[%clk 0:01:55.1]} 24... Nxc2
{[%clk 0:01:56.4]} 25. Bxa8 {[%clk 0:01:55.5]} 25... h5 {[%clk 0:01:35.9]} 26.
Rd8+ {[%clk 0:01:52]} 26... Kh7 {[%clk 0:01:35.1]} 27. Be4+ {[%clk 0:01:51.1]}
27... g6 {[%clk 0:01:35]} 28. Rd7+ {[%clk 0:01:37.8]} 28... Kg8 {[%clk
0:01:33.9]} 29. Bd5+ {[%clk 0:01:29.1]} 29... Kf8 {[%clk 0:01:34.1]} 30. Bh6+
{[%clk 0:01:28.4]} 30... Ke8 {[%clk 0:01:34]} 31. Bf7+ {[%clk 0:01:28.8]} 31...
Qxf7 {[%clk 0:01:31.6]} 32. Rxf7 {[%clk 0:01:29.7]} 1-0

[Event "Early-Titled-Tuesday-Blitz-October-17-2023"]
[Site "Chess.com"]
[Date "2023.10.17"]
[Round "11"]
[White "garicradomir"]
[Black "arminmusovic"]
[Result "1-0"]
[WhiteElo "2346"]
[BlackElo "2481"]
[TimeControl "180+1"]
[EndTime "10:07:11 PDT"]
[Termination "garicradomir won by resignation"]

1. e4 {[%clk 0:03:00.9]} 1... c6 {[%clk 0:02:59.5]} 2. d4 {[%clk 0:02:59]} 2...
d5 {[%clk 0:03:00.1]} 3. exd5 {[%clk 0:02:59.4]} 3... cxd5 {[%clk 0:03:01]} 4.
Bd3 {[%clk 0:02:59.4]} 4... Nc6 {[%clk 0:03:01.5]} 5. c3 {[%clk 0:02:59.4]} 5...
Nf6 {[%clk 0:03:02.3]} 6. Bf4 {[%clk 0:02:59.6]} 6... g6 {[%clk 0:03:03]} 7. Nd2
{[%clk 0:02:49.9]} 7... Bg7 {[%clk 0:03:03.1]} 8. h3 {[%clk 0:02:50.4]} 8... O-O
{[%clk 0:03:03.6]} 9. Ngf3 {[%clk 0:02:50.7]} 9... Re8 {[%clk 0:03:04.2]} 10.
O-O {[%clk 0:02:50.6]} 10... a6 {[%clk 0:03:04.9]} 11. Re1 {[%clk 0:02:50.5]}
11... Nd7 {[%clk 0:03:05.2]} 12. Nb3 {[%clk 0:02:42.8]} 12... Nf8 {[%clk
0:03:03.8]} 13. Qd2 {[%clk 0:02:41.6]} 13... f6 {[%clk 0:02:54.8]} 14. Bh6
{[%clk 0:02:41.3]} 14... b6 {[%clk 0:02:52.5]} 15. c4 {[%clk 0:02:39]} 15... e6
{[%clk 0:02:45.7]} 16. Bxg7 {[%clk 0:02:35.8]} 16... Kxg7 {[%clk 0:02:45.6]} 17.
Rac1 {[%clk 0:02:33.4]} 17... Bd7 {[%clk 0:02:42.5]} 18. cxd5 {[%clk 0:02:30.5]}
18... exd5 {[%clk 0:02:43.4]} 19. Rxe8 {[%clk 0:02:24.3]} 19... Qxe8 {[%clk
0:02:44.3]} 20. Re1 {[%clk 0:02:24.3]} 20... Qf7 {[%clk 0:02:42.2]} 21. Qf4
{[%clk 0:02:24.3]} 21... Nb4 {[%clk 0:02:21.4]} 22. Qd6 {[%clk 0:02:13.5]} 22...
Nc6 {[%clk 0:02:01.7]} 23. a3 {[%clk 0:01:55.9]} 23... Ne6 {[%clk 0:01:53.8]}
24. h4 {[%clk 0:01:48.4]} 24... Nf8 {[%clk 0:01:46]} 25. h5 {[%clk 0:01:46.6]}
25... gxh5 {[%clk 0:01:46.9]} 26. Nh4 {[%clk 0:01:46.1]} 26... Re8 {[%clk
0:01:40.9]} 27. Rc1 {[%clk 0:01:43.1]} 27... Re6 {[%clk 0:01:31.2]} 28. Qg3+
{[%clk 0:01:39.8]} 28... Kh8 {[%clk 0:01:29.9]} 29. Bxa6 {[%clk 0:01:39.8]}
29... Re4 {[%clk 0:01:23.1]} 30. f3 {[%clk 0:01:34.4]} 30... Nxd4 {[%clk
0:01:18.9]} 31. fxe4 {[%clk 0:01:30.5]} 31... Nxb3 {[%clk 0:01:17.2]} 32. Qxb3
{[%clk 0:01:29.5]} 32... Be6 {[%clk 0:01:10.9]} 33. exd5 {[%clk 0:01:25.3]}
33... Bxd5 {[%clk 0:01:11.8]} 34. Bc4 {[%clk 0:01:24.3]} 1-0